bitfinex-derivatives/quotes_BTCF0:USTF0_20250125
["timestamp","ask_amount","ask_price","bid_price","bid_amount"]
[1737768835456,0.44642176,104790.0,104780.0,0.30816112]
[1737768836959,0.44642176,104790.0,104780.0,0.25082501]
[1737768837161,0.65645087,104790.0,104770.0,0.19336294]
[1737768837463,0.68795087,104790.0,104770.0,0.22678084]
[1737768838057,0.68795087,104790.0,104770.0,0.19336294]
[1737768838258,0.68795087,104790.0,104770.0,0.22678138]
[1737768838653,0.80220563,104790.0,104770.0,0.45354051]
[1737768838859,0.80220563,104790.0,104770.0,0.51087662]
[1737768841262,0.80220563,104790.0,104770.0,0.45354051]
[1737768842064,0.80220563,104790.0,104770.0,0.51087662]
[1737768842752,0.08562176,104780.0,104770.0,0.51087662]
[1737768844458,0.08562176,104780.0,104770.0,0.45354051]
[1737768844860,0.08562176,104780.0,104770.0,0.51087662]
[1737768845864,0.19987652,104780.0,104770.0,0.51087662]
[1737768847065,0.19987652,104780.0,104770.0,0.47745818]
[1737768847467,0.19987652,104780.0,104770.0,0.51087629]
[1737768847763,0.19987652,104780.0,104770.0,0.47745818]
[1737768851568,0.19987652,104780.0,104770.0,0.9290124]
[1737768851868,0.19958972,104780.0,104770.0,1.07884334]
[1737768852264,0.19958972,104780.0,104770.0,1.11907757]
[1737768853470,0.19958972,104780.0,104770.0,1.07884334]
[1737768854269,0.19958972,104780.0,104770.0,1.09375934]
[1737768854673,0.19958972,104780.0,104770.0,1.10807934]
[1737768855265,0.19958972,104780.0,104770.0,1.0089768]
[1737768855676,0.19958972,104780.0,104770.0,1.06631291]
[1737768857266,0.19958972,104780.0,104770.0,1.12243691]
[1737768857670,0.5136304,104800.0,104790.0,0.152693]
[1737768859372,0.3609434,104800.0,104790.0,0.24013726]
[1737768861277,0.0001434,104800.0,104790.0,0.24013726]
[1737768861479,0.0001434,104800.0,104790.0,0.27355039]
[1737768862974,0.0001434,104800.0,104790.0,0.28290796]
[1737768864883,0.0001434,104800.0,104790.0,0.31380796]
[1737768866986,0.0001434,104800.0,104790.0,0.28039483]
[1737768868079,0.0001434,104800.0,104790.0,0.45089311]
[1737768868882,0.0001434,104800.0,104790.0,0.89913737]
[1737768869080,0.0001434,104800.0,104790.0,0.84510249]
[1737768869977,0.0001434,104800.0,104790.0,0.48430249]
[1737768870484,0.0001434,104800.0,104790.0,0.84510249]
[1737768871388,0.0001434,104800.0,104790.0,0.48430249]
[1737768871598,0.0001434,104800.0,104790.0,0.84510249]
[1737768872188,0.0001434,104800.0,104790.0,0.81169311]
[1737768872388,0.0001434,104800.0,104790.0,0.86869188]
[1737768873680,0.0001434,104800.0,104790.0,0.90210102]
[1737768874181,0.0001434,104800.0,104790.0,0.91701581]
[1737768874694,0.0001434,104800.0,104790.0,1.00446007]
[1737768874987,0.0001434,104800.0,104790.0,0.91701581]
[1737768877781,0.0001434,104800.0,104790.0,0.88694503]
[1737768878075,0.0001434,104800.0,104790.0,0.92870738]
[1737768878284,0.0001434,104800.0,104790.0,0.85604503]
[1737768878477,0.0329434,104800.0,104790.0,0.85604503]
[1737768878876,0.0329434,104800.0,104790.0,0.85604582]
[1737768879981,0.09031688,104800.0,104790.0,0.43787234]
[1737768880181,0.48381688,104800.0,104790.0,0.4044632]
[1737768880381,0.51471688,104800.0,104790.0,0.4044632]
[1737768880980,0.4573434,104800.0,104790.0,0.4044632]
[1737768881189,0.51471688,104800.0,104790.0,0.39510563]
[1737768881384,0.66739588,104800.0,104790.0,0.39510563]
[1737768881884,0.6100224,104800.0,104790.0,0.56575512]
[1737768882189,0.66739588,104800.0,104790.0,0.41306212]
[1737768884285,0.66739588,104800.0,104790.0,0.39814654]
[1737768885491,0.92462045,104800.0,104780.0,0.3904894]
[1737768885692,0.3608,104790.0,104780.0,0.3904894]
[1737768886291,0.3608,104790.0,104780.0,0.42390553]
[1737768886789,0.93549157,104800.0,104780.0,0.42390553]
[1737768886990,0.93425156,104800.0,104780.0,0.42390553]
[1737768887289,0.87687808,104800.0,104780.0,0.5985854]
[1737768887479,0.72419908,104800.0,104790.0,0.21006648]
[1737768889694,0.58122927,104800.0,104790.0,0.21006648]
[1737768889896,0.73390827,104800.0,104790.0,0.21006648]
[1737768890292,0.73390827,104800.0,104790.0,0.152693]
[1737768892485,0.37310827,104800.0,104790.0,0.152693]
[1737768892890,0.73390827,104800.0,104790.0,0.152693]
[1737768893293,0.37310827,104800.0,104790.0,0.152693]
[1737768895195,0.21079816,104800.0,104790.0,0.21006648]
[1737768895398,0.17809816,104800.0,104790.0,0.21006648]
[1737768895692,0.14719816,104800.0,104790.0,0.21006648]
[1737768896794,0.14719816,104800.0,104790.0,0.152693]
[1737768898294,0.20457164,104800.0,104790.0,0.152693]
[1737768899394,0.09031688,104800.0,104790.0,0.32334249]
[1737768901499,0.60379588,104800.0,104790.0,0.32334249]
[1737768901889,0.60379588,104800.0,104790.0,0.17064949]
[1737768902089,0.66116936,104800.0,104790.0,0.17064949]
[1737768905396,0.50849036,104800.0,104780.0,0.22749705]
[1737768905601,0.63316648,104790.0,104780.0,0.22749705]
[1737768908807,0.94779035,104790.0,104770.0,0.05751688]
[1737768909306,0.3608,104780.0,104770.0,0.05751688]
[1737768910109,0.3608,104780.0,104770.0,0.21023988]
[1737768910908,0.41817348,104780.0,104770.0,0.1528664]
[1737768911108,0.41817348,104780.0,104770.0,0.0001434]
[1737768911403,0.57088148,104780.0,104770.0,0.0001434]
[1737768911902,0.66055496,104780.0,104770.0,0.0001434]
[1737768912107,0.60318148,104780.0,104770.0,0.0001434]
[1737768912305,0.77487667,104780.0,104770.0,0.0001434]
[1737768912504,0.71750319,104780.0,104770.0,0.0001434]
[1737768916503,0.860473,104780.0,104770.0,0.0001434]
[1737768921602,0.71750319,104780.0,104770.0,0.0001434]
[1737768922007,0.77487667,104780.0,104770.0,0.0001434]
[1737768928220,0.71750319,104780.0,104770.0,0.0001434]
[1737768932424,0.860473,104780.0,104770.0,0.0001434]
[1737768933616,0.860473,104780.0,104770.0,0.01506396]
[1737768934626,0.91784648,104780.0,104770.0,0.01506401]
[1737768936031,0.80352477,104780.0,104770.0,0.01506401]
[1737768936326,0.74615129,104780.0,104770.0,0.01506401]
[1737768940329,0.74615129,104780.0,104770.0,0.01506399]
[1737768940829,0.74615129,104780.0,104770.0,0.0001434]
[1737768941029,0.74615129,104780.0,104770.0,0.01506399]
[1737768943817,0.80352477,104780.0,104770.0,0.01506399]
[1737768944134,0.74615129,104780.0,104770.0,0.01506399]
[1737768944631,0.74615129,104780.0,104770.0,0.01506407]
[1737768946735,0.74615129,104780.0,104770.0,0.015064]
[1737768947434,0.74615129,104780.0,104770.0,0.01506401]
[1737768948933,0.50376981,104780.0,104770.0,0.22516049]
[1737768950133,0.14296981,104780.0,104770.0,0.22516049]
[1737768951835,0.14296981,104780.0,104770.0,0.21023988]
[1737768952036,0.14296981,104780.0,104770.0,0.22515915]
[1737768954840,0.11447041,104780.0,104770.0,0.4526562]
[1737768955340,0.11447041,104780.0,104770.0,0.46221236]
[1737768955837,0.11447041,104780.0,104770.0,0.49563152]
[1737768959738,0.11447041,104780.0,104770.0,0.48071225]
[1737768960134,0.17184389,104780.0,104770.0,0.48071225]
[1737768960440,0.17184389,104780.0,104770.0,0.47115609]
[1737768961032,0.17184389,104780.0,104770.0,0.41378261]
[1737768961234,0.38192537,104780.0,104770.0,0.38036345]
[1737768961434,0.71585189,104780.0,104770.0,0.22764045]
[1737768961654,0.74785189,104780.0,104770.0,0.22764045]
[1737768963544,0.8908217,104780.0,104770.0,0.0001434]
[1737768967041,0.77635129,104780.0,104770.0,0.0001434]
[1737768969851,0.77635129,104780.0,104770.0,0.01506476]
[1737768970746,0.94800535,104780.0,104770.0,0.01506476]
[1737768971139,0.43449735,104780.0,104770.0,0.01506476]
[1737768971343,0.43449735,104780.0,104770.0,0.07243671]
[1737768971552,0.79529735,104780.0,104770.0,0.22515971]
[1737768971945,0.79529735,104780.0,104770.0,0.22516017]
[1737768972545,0.73792387,104780.0,104770.0,0.22516017]
[1737768972841,0.79529735,104780.0,104770.0,0.22516017]
[1737768973852,0.62364329,104780.0,104770.0,0.22516017]
[1737768974048,0.28786165,104780.0,104770.0,0.22516017]
[1737768974446,0.25736165,104780.0,104770.0,0.22516017]
[1737768975550,0.25736165,104780.0,104770.0,0.25857968]
[1737768975751,0.25736165,104780.0,104770.0,0.22516017]
[1737768976664,0.25736165,104780.0,104770.0,0.68624967]
[1737768976858,0.25736165,104780.0,104770.0,0.65283016]
[1737768977759,0.20018321,104780.0,104770.0,0.65283016]
[1737768979657,0.20018321,104780.0,104770.0,0.63790987]
[1737768979957,0.20018321,104780.0,104770.0,0.65282836]
[1737768980851,0.20018321,104780.0,104770.0,0.63790987]
[1737768981055,0.57041595,104790.0,104770.0,0.71268392]
[1737768981262,0.57041595,104790.0,104780.0,0.29965496]
[1737768981858,0.57041595,104790.0,104780.0,0.31457345]
[1737768982059,0.57041595,104790.0,104780.0,0.34567345]
[1737768983957,0.57041595,104790.0,104780.0,0.37827345]
[1737768986963,0.57041595,104790.0,104780.0,0.36335496]
[1737768989164,0.57041595,104790.0,104780.0,0.30598148]
[1737768989758,0.57041595,104790.0,104780.0,0.36335496]
[1737768992766,0.57041595,104790.0,104780.0,0.30598148]
[1737768994270,0.57041595,104790.0,104780.0,0.36335496]
[1737768995174,0.57041595,104790.0,104780.0,0.30598148]
[1737768998579,0.57041595,104790.0,104780.0,0.36335496]
[1737768998783,0.20018321,104790.0,104780.0,0.75757182]
[1737768999080,0.02953372,104790.0,104780.0,0.75757182]
[1737768999292,0.02953372,104790.0,104780.0,0.8149453]
[1737768999883,0.02953372,104790.0,104780.0,0.75757182]
[1737769002798,0.0001434,104800.0,104790.0,0.152693]
[1737769002990,0.0001434,104800.0,104790.0,0.60428334]
[1737769003385,0.0001434,104800.0,104790.0,0.62823996]
[1737769003587,0.0001434,104800.0,104790.0,0.66164996]
[1737769006098,0.0001434,104800.0,104790.0,0.88896886]
[1737769007797,0.0001434,104800.0,104790.0,0.79818538]
[1737769008501,0.0001434,104800.0,104790.0,0.86910538]
[1737769008892,0.0001434,104800.0,104790.0,0.87843596]
[1737769011703,0.0001434,104800.0,104790.0,0.65111706]
[1737769011904,0.0001434,104800.0,104790.0,0.61360678]
[1737769012108,0.0001434,104800.0,104790.0,0.25280678]
[1737769012294,0.0001434,104800.0,104790.0,0.21939706]
[1737769012998,0.0001434,104800.0,104790.0,0.58019706]
[1737769015604,0.0001434,104800.0,104790.0,0.63757054]
[1737769016010,0.0001434,104800.0,104790.0,0.58019706]
[1737769016505,0.0001434,104800.0,104790.0,0.63757054]
[1737769016707,0.0001434,104800.0,104790.0,0.58019706]
[1737769021611,0.0001434,104800.0,104790.0,0.63757054]
[1737769022008,0.0001434,104800.0,104790.0,0.58019706]
[1737769024114,0.0001434,104800.0,104790.0,0.80751596]
[1737769025212,0.0001434,104800.0,104790.0,0.84092574]
[1737769026218,0.0001434,104800.0,104790.0,0.89829922]
[1737769029812,0.0001434,104800.0,104790.0,0.84092574]
[1737769030109,0.5136224,104800.0,104790.0,0.41342168]
[1737769030311,0.63319588,104800.0,104790.0,0.26072868]
[1737769030913,0.63319588,104800.0,104790.0,0.2273189]
[1737769031415,0.63319588,104800.0,104790.0,0.28469238]
[1737769032117,0.5758224,104800.0,104790.0,0.28469238]
[1737769032320,0.5758224,104800.0,104790.0,0.64261984]
[1737769032712,0.2150224,104800.0,104790.0,0.64261984]
[1737769032921,0.5758224,104800.0,104790.0,0.64261984]
[1737769034921,0.58554711,104800.0,104790.0,0.64261984]
[1737769035220,0.58554711,104800.0,104790.0,0.58524636]
[1737769037325,0.72851692,104800.0,104780.0,0.38071268]
[1737769037526,0.0304,104790.0,104780.0,0.38071268]
[1737769039528,0.0304,104790.0,104780.0,0.43808616]
[1737769039732,0.0304,104790.0,104780.0,0.46958616]
[1737769041833,0.58554711,104800.0,104780.0,0.50008616]
[1737769042124,0.58554711,104800.0,104790.0,0.05737348]
[1737769047527,0.64292059,104800.0,104780.0,0.44271268]
[1737769047732,0.0311,104790.0,104780.0,0.47612786]
[1737769047935,0.0311,104790.0,104780.0,0.44562786]
[1737769048141,0.0311,104790.0,104780.0,0.41412786]
[1737769049439,0.60196648,104790.0,104780.0,0.20405038]
[1737769049749,0.60196648,104790.0,104780.0,0.1706352]
[1737769049939,0.544593,104790.0,104780.0,0.22800868]
[1737769051739,0.544593,104790.0,104780.0,0.1706352]
[1737769051943,0.60196648,104790.0,104780.0,0.1706352]
[1737769052246,0.60196648,104790.0,104770.0,0.61794105]
[1737769052546,0.0301,104780.0,104770.0,0.61794105]
[1737769052729,0.0301,104780.0,104770.0,0.46522205]
[1737769052935,0.182808,104780.0,104770.0,0.46522205]
[1737769053134,0.216108,104780.0,104770.0,0.46522205]
[1737769055044,0.216108,104780.0,104770.0,0.45566568]
[1737769055544,0.216108,104780.0,104770.0,0.22815208]
[1737769057245,0.152708,104780.0,104770.0,0.38087508]
[1737769057743,0.152708,104780.0,104770.0,0.22815208]
[1737769057947,0.513508,104780.0,104770.0,0.22815208]
[1737769058448,0.513508,104780.0,104770.0,0.26157335]
[1737769059448,0.62825496,104780.0,104770.0,0.1707786]
[1737769059644,0.69075496,104780.0,104770.0,0.1707786]
[1737769061445,0.70045655,104780.0,104770.0,0.1707786]
[1737769062141,0.64308307,104780.0,104770.0,0.1707786]
[1737769062849,0.81473713,104780.0,104770.0,0.0001434]
[1737769065454,0.90007409,104780.0,104770.0,0.0001434]
[1737769071658,0.83757409,104780.0,104770.0,0.0001434]
[1737769072358,0.78020061,104780.0,104770.0,0.0001434]
[1737769073158,0.63742782,104780.0,104770.0,0.0001434]
[1737769073857,0.6948013,104780.0,104770.0,0.0001434]
[1737769080056,0.11421823,104780.0,104770.0,0.57103988]
[1737769080647,0.11421823,104780.0,104770.0,0.21023988]
[1737769080853,0.11421823,104780.0,104770.0,0.57103988]
[1737769084258,0.11421823,104790.0,104780.0,0.152708]
[1737769084560,0.11421823,104790.0,104780.0,0.36265496]
[1737769087653,0.62784263,104800.0,104780.0,0.53329016]
[1737769087966,0.62784263,104800.0,104790.0,0.05737348]
[1737769097872,0.68521611,104800.0,104780.0,0.30528148]
[1737769098067,0.57086648,104790.0,104770.0,0.9788507]
[1737769098375,0.60166648,104790.0,104770.0,0.9788507]
[1737769099182,0.544293,104790.0,104780.0,0.05737348]
[1737769099475,0.544293,104790.0,104770.0,0.9788507]
[1737769099771,0.544293,104790.0,104780.0,0.05737348]
[1737769100776,0.65851123,104790.0,104780.0,0.05737348]
[1737769101275,0.65851123,104790.0,104770.0,0.7513371]
[1737769101674,0.71588471,104790.0,104770.0,0.74167008]
[1737769101875,0.71588471,104790.0,104770.0,0.3234966]
[1737769102079,0.152708,104780.0,104770.0,0.22815208]
[1737769102479,0.513508,104780.0,104770.0,0.22815208]
[1737769103074,0.3608,104780.0,104770.0,0.22815208]
[1737769103280,0.3608,104780.0,104770.0,0.38087508]
[1737769104382,0.3608,104780.0,104770.0,0.41429431]
[1737769104678,0.3608,104780.0,104770.0,0.21023988]
[1737769104875,0.513508,104780.0,104770.0,0.05751688]
[1737769105069,0.577008,104780.0,104770.0,0.05751688]
[1737769106076,0.577008,104780.0,104770.0,0.0001434]
[1737769106585,0.577008,104780.0,104770.0,0.05751688]
[1737769106771,0.577008,104780.0,104770.0,0.0001434]
[1737769107081,0.63438148,104780.0,104770.0,0.0001434]
[1737769108577,0.74859971,104780.0,104770.0,0.0001434]
[1737769112687,0.8913725,104780.0,104770.0,0.0001434]
[1737769115486,0.8278725,104780.0,104770.0,0.0001434]
[1737769117987,0.77049902,104780.0,104770.0,0.05751688]
[1737769118881,0.61779102,104780.0,104770.0,0.21023988]
[1737769119085,0.25699102,104780.0,104770.0,0.57103988]
[1737769119283,0.25699102,104780.0,104770.0,0.60233988]
[1737769120092,0.11421823,104780.0,104770.0,0.60233988]
[1737769122776,0.11421823,104780.0,104770.0,0.63333988]
[1737769123990,0.08571596,104780.0,104770.0,0.80397508]
[1737769125084,0.08571596,104780.0,104770.0,0.8137705]
[1737769126290,0.08571596,104780.0,104770.0,0.84718883]
[1737769130790,0.35262719,104790.0,104770.0,1.49178842]
[1737769130993,0.35262719,104790.0,104780.0,0.05737348]
[1737769132288,0.35262719,104790.0,104780.0,0.09078972]
[1737769133195,0.35262719,104790.0,104780.0,0.05737348]
[1737769133492,0.41000067,104790.0,104770.0,1.45837009]
[1737769133685,0.47180067,104790.0,104770.0,1.49178654]
[1737769134084,0.41442719,104790.0,104770.0,1.49178654]
[1737769134290,0.77522719,104790.0,104770.0,1.45837009]
[1737769134883,0.77522719,104790.0,104770.0,0.8706489]
[1737769134884,0.66100896,104790.0,104770.0,0.8706489]
[1737769139294,0.77522719,104790.0,104780.0,0.05737348]
[1737769141691,0.26173419,104790.0,104780.0,0.21008148]
[1737769144595,0.23013419,104790.0,104780.0,0.21008148]
[1737769146302,0.19993419,104790.0,104780.0,0.38068273]
[1737769146808,0.19993419,104790.0,104780.0,0.445099]
[1737769146988,0.56073419,104790.0,104780.0,0.445099]
[1737769147301,0.56073419,104790.0,104780.0,0.414099]
[1737769147501,0.59353419,104790.0,104780.0,0.414099]
[1737769148098,0.62523419,104790.0,104780.0,0.38068273]
[1737769148293,0.62523419,104790.0,104780.0,0.41409995]
[1737769149498,0.68229102,104790.0,104780.0,0.41409995]
[1737769149695,0.68229102,104790.0,104780.0,0.17060125]
[1737769149896,0.8923575,104790.0,104780.0,0.17060125]
[1737769150791,0.83498402,104790.0,104780.0,0.17060125]
[1737769151195,0.83498402,104790.0,104780.0,0.20401875]
[1737769151695,0.83498402,104790.0,104780.0,0.26139223]
[1737769151896,0.84431143,104790.0,104780.0,0.22797473]
[1737769152099,0.84431143,104790.0,104780.0,0.17060125]
[1737769155104,0.90168491,104790.0,104780.0,0.17060125]
[1737769156400,0.78746668,104790.0,104780.0,0.17060125]
[1737769163311,0.7300932,104790.0,104780.0,0.22797473]
[1737769164008,0.7300932,104790.0,104780.0,0.17060125]
[1737769164408,0.29546579,104790.0,104780.0,0.26139299]
[1737769164604,0.29546579,104790.0,104780.0,0.29359299]
[1737769165106,0.65626579,104790.0,104780.0,0.29359299]
[1737769166915,0.82791985,104790.0,104780.0,0.29359299]
[1737769169011,0.82791985,104790.0,104780.0,0.26017473]
[1737769170903,0.67522685,104790.0,104780.0,0.26017473]
[1737769171108,0.67522685,104790.0,104780.0,0.41288273]
[1737769171723,0.67522685,104790.0,104780.0,0.42254758]
[1737769174320,0.50357279,104790.0,104780.0,0.42254758]
[1737769175816,0.14277279,104790.0,104780.0,0.42254758]
[1737769176119,0.50357279,104790.0,104780.0,0.42254758]
[1737769176817,0.14277279,104790.0,104780.0,0.42254758]
[1737769177021,0.50357279,104790.0,104780.0,0.42254758]
[1737769178026,0.3608,104790.0,104780.0,0.42254758]
[1737769178713,0.3608,104790.0,104780.0,0.41288273]
[1737769178913,0.3608,104790.0,104780.0,0.20280125]
[1737769178914,0.57086648,104790.0,104780.0,0.20280125]
[1737769179125,0.57086648,104790.0,104780.0,0.17060125]
[1737769179325,0.63486648,104790.0,104780.0,0.17060125]
[1737769180019,0.63486648,104790.0,104780.0,0.20401905]
[1737769181323,0.94929333,104790.0,104780.0,0.20401905]
[1737769182423,0.94929333,104790.0,104780.0,0.17060125]
[1737769187628,0.89191985,104790.0,104780.0,0.17060125]
[1737769188131,0.94929333,104790.0,104780.0,0.17060125]
[1737769188823,0.89191985,104790.0,104780.0,0.17060125]
[1737769189233,0.82791985,104790.0,104780.0,0.17060125]
[1737769191234,0.82791985,104790.0,104780.0,0.22797473]
[1737769191735,0.82791985,104790.0,104780.0,0.26087473]
[1737769192238,0.82791985,104790.0,104780.0,0.27029279]
[1737769193437,0.82791985,104790.0,104780.0,0.21291931]
[1737769195332,0.82791985,104790.0,104780.0,0.27029279]
[1737769196039,0.82791985,104790.0,104780.0,0.21291931]
[1737769196442,0.82791985,104790.0,104780.0,0.20350125]
[1737769197134,0.88529333,104790.0,104780.0,0.20350125]
[1737769198542,0.91849333,104790.0,104780.0,0.20350125]
[1737769198743,0.91849333,104790.0,104780.0,0.17060125]
[1737769199042,0.95109333,104790.0,104780.0,0.17060125]
[1737769203245,0.80832054,104790.0,104770.0,0.39825825]
[1737769203445,0.80832054,104790.0,104770.0,0.43167783]
[1737769203649,0.80832054,104790.0,104770.0,0.84985131]
[1737769203833,0.80832054,104790.0,104770.0,0.48905131]
[1737769205348,0.80832054,104790.0,104770.0,0.51955131]
[1737769207052,0.25771458,104780.0,104770.0,0.51955131]
[1737769209355,0.25771458,104780.0,104770.0,0.67227431]
[1737769209556,0.25771458,104780.0,104770.0,1.06367431]
[1737769209748,0.25771458,104780.0,104770.0,0.70287431]
[1737769210954,0.25771458,104780.0,104770.0,1.06367431]
[1737769216153,0.25771458,104780.0,104770.0,0.70287431]
[1737769216658,0.25771458,104780.0,104770.0,0.58440083]
[1737769216659,0.35314448,104780.0,104770.0,0.58440083]
[1737769216876,0.38534448,104780.0,104770.0,0.58440083]
[1737769217168,0.38534448,104780.0,104770.0,0.64177431]
[1737769219260,0.44262258,104780.0,104770.0,0.64177431]
[1737769223181,0.29944781,104780.0,104770.0,0.64177431]
[1737769226676,0.30908407,104780.0,104770.0,0.64177431]
[1737769226879,0.29944781,104780.0,104770.0,0.64177431]
[1737769231681,0.29944781,104780.0,104770.0,0.67297431]
[1737769232684,0.66024781,104780.0,104770.0,0.67297431]
[1737769234675,0.77499477,104780.0,104770.0,0.39825825]
[1737769234876,0.83236825,104780.0,104770.0,0.37900104]
[1737769235180,0.152723,104770.0,104760.0,0.62685738]
[1737769235389,0.68916996,104770.0,104760.0,0.62685738]
[1737769235586,0.63179648,104770.0,104760.0,0.62685738]
[1737769235788,0.68916996,104770.0,104760.0,0.62685738]
[1737769235987,0.63179648,104770.0,104760.0,0.62685738]
[1737769236182,0.68916996,104770.0,104760.0,0.62685738]
[1737769237190,0.152737,104760.0,104750.0,0.0001434]
[1737769237489,0.65978396,104760.0,104750.0,0.0001434]
[1737769241892,0.152764,104750.0,104730.0,0.00143175]
[1737769242082,0.44927348,104740.0,104730.0,0.00143175]
[1737769242785,0.3919,104740.0,104730.0,0.00143175]
[1737769242985,0.44927348,104740.0,104730.0,0.00143175]
[1737769243592,0.60203948,104740.0,104730.0,0.00143175]
[1737769250394,0.61173022,104740.0,104730.0,0.00143175]
[1737769255305,0.6691037,104740.0,104730.0,0.00143175]
[1737769256698,1.0299037,104740.0,104730.0,0.00143175]
[1737769256895,0.152781,104730.0,104720.0,0.0001434]
[1737769257095,0.57095448,104730.0,104720.0,0.0001434]
[1737769258194,0.57095448,104730.0,104720.0,0.0011434]
[1737769259086,0.63455448,104730.0,104720.0,0.0011434]
[1737769264801,0.72011076,104730.0,104720.0,0.0011434]
[1737769266302,0.65651076,104730.0,104720.0,0.0011434]
[1737769267897,0.152795,104720.0,104710.0,0.00011502]
[1737769268200,0.69144196,104720.0,104700.0,0.316422]
[1737769268395,0.41817348,104710.0,104700.0,0.1318]
[1737769268604,0.57098348,104710.0,104700.0,0.1318]
[1737769269398,0.57098348,104710.0,104700.0,0.1]
[1737769271000,0.57198348,104710.0,104700.0,0.1]
[1737769274207,0.82903156,104710.0,104700.0,0.1]
[1737769276106,0.83883149,104710.0,104700.0,0.1]
[1737769276811,0.61884808,104710.0,104700.0,0.15737348]
[1737769277004,0.61884808,104710.0,104700.0,0.22057348]
[1737769277806,0.67622156,104710.0,104700.0,0.1632]
[1737769278123,0.6190874,104710.0,104700.0,0.1632]
[1737769278409,0.2582874,104710.0,104700.0,0.1632]
[1737769282722,0.05837348,104710.0,104700.0,0.1632]
[1737769283917,0.001,104710.0,104700.0,0.22057348]
[1737769284125,0.001,104710.0,104700.0,0.79157196]
[1737769284318,0.001,104710.0,104700.0,0.82501026]
[1737769285828,0.001,104710.0,104700.0,0.79782704]
[1737769286028,0.001,104710.0,104700.0,0.88539078]
[1737769286922,0.08581373,104720.0,104710.0,0.15281]
[1737769287119,0.11424359,104730.0,104710.0,0.15281]
[1737769287120,0.11424359,104730.0,104710.0,0.51420204]
[1737769287427,0.11424359,104730.0,104720.0,0.70505874]
[1737769287626,0.11424359,104730.0,104720.0,0.73849704]
[1737769289036,0.11424359,104730.0,104720.0,0.73845704]
[1737769289227,0.11424359,104730.0,104720.0,0.66769704]
[1737769289427,0.11424359,104730.0,104720.0,0.73845704]
[1737769289729,0.14438077,104740.0,104730.0,0.24034474]
[1737769290028,0.14438077,104740.0,104730.0,0.73750474]
[1737769290528,0.14438077,104740.0,104730.0,0.77093264]
[1737769290827,0.14438077,104740.0,104730.0,0.70017264]
[1737769291031,0.14438077,104740.0,104730.0,0.77093264]
[1737769292531,0.14438077,104740.0,104730.0,0.70017264]
[1737769292833,0.14438077,104740.0,104730.0,0.77093264]
[1737769293033,0.14438077,104740.0,104730.0,0.85849638]
[1737769293439,0.00157628,104740.0,104730.0,0.85849638]
[1737769293932,0.0001434,104740.0,104730.0,0.85849638]
[1737769294133,0.0001434,104740.0,104730.0,0.8682855]
[1737769294432,0.0001434,104740.0,104730.0,0.74729386]
[1737769296535,0.56830449,104770.0,104730.0,0.7202706]
[1737769296737,0.72102949,104770.0,104760.0,0.08756374]
[1737769297036,0.72102949,104770.0,104750.0,0.08756374]
[1737769297234,0.578225,104770.0,104750.0,0.15056374]
[1737769297731,0.58805033,104770.0,104760.0,0.152737]
[1737769299335,0.43532533,104770.0,104760.0,0.152737]
[1737769300534,0.4256434,104770.0,104760.0,0.152737]
[1737769320250,0.56844789,104770.0,104760.0,0.152737]
[1737769322746,0.20764789,104770.0,104760.0,0.152737]
[1737769323849,0.20764789,104770.0,104760.0,0.1861599]
[1737769325653,0.20764789,104770.0,104760.0,0.24357797]
[1737769327559,0.14294789,104770.0,104760.0,0.24357797]
[1737769329460,0.14294789,104770.0,104760.0,0.62837314]
[1737769329651,0.14294789,104770.0,104760.0,0.69279442]
[1737769333465,0.0001434,104770.0,104760.0,0.91914113]
[1737769343767,0.0001434,104770.0,104760.0,0.98986113]
[1737769355572,0.0001434,104770.0,104760.0,1.16055085]
[1737769357980,0.1145633,104770.0,104760.0,1.27423244]
[1737769360783,0.17480449,104780.0,104770.0,0.152723]
[1737769361081,0.14280449,104780.0,104770.0,0.66178042]
[1737769361283,0.07828068,104780.0,104770.0,0.76724798]
[1737769364290,0.07828068,104780.0,104770.0,0.72548042]
[1737769364886,0.07828068,104780.0,104770.0,0.76724654]
[1737769365189,0.07828068,104780.0,104770.0,0.72548042]
[1737769366193,0.07828068,104780.0,104770.0,0.82673942]
[1737769366391,0.07828068,104780.0,104770.0,0.8362899]
[1737769366887,0.20026308,104800.0,104790.0,0.152693]
[1737769367085,0.17011303,104800.0,104790.0,1.05980914]
[1737769367483,0.17011303,104800.0,104790.0,1.12130914]
[1737769367682,0.48699835,104810.0,104800.0,0.152679]
[1737769367683,0.00143189,104810.0,104800.0,0.152679]
[1737769367893,0.00143189,104810.0,104800.0,0.62831514]
[1737769371993,0.00143189,104810.0,104800.0,0.79838456]
[1737769372688,0.00143189,104810.0,104800.0,0.83179153]
[1737769373180,0.00143189,104810.0,104800.0,0.79838456]
[1737769376089,0.00143189,104810.0,104800.0,0.6379709]
[1737769383100,0.0001434,104820.0,104800.0,0.4852919]
[1737769383407,0.1527934,104820.0,104810.0,0.21008207]
[1737769388803,0.0001434,104820.0,104810.0,0.21008207]
[1737769397610,0.0001434,104820.0,104810.0,0.38015149]
[1737769397801,0.0001434,104820.0,104810.0,0.41115149]
[1737769400607,0.0001434,104820.0,104810.0,0.46784129]
[1737769402809,0.0001434,104820.0,104810.0,0.50124835]
[1737769407221,0.0001434,104820.0,104810.0,0.46784129]
[1737769408516,0.0001434,104820.0,104810.0,0.50124835]
[1737769410111,0.0001434,104820.0,104810.0,0.46784129]
[1737769410305,0.1433049,104820.0,104810.0,0.63851717]
[1737769415314,0.0001434,104820.0,104810.0,0.46784129]
[1737769417722,0.0001434,104820.0,104810.0,0.50124835]
[1737769419422,0.1433049,104820.0,104810.0,0.50124835]
[1737769420925,0.1433049,104820.0,104810.0,0.53164835]
[1737769423525,0.25784218,104820.0,104810.0,0.70225632]
[1737769427929,0.82871025,104820.0,104810.0,0.43077425]
[1737769429123,0.82871025,104820.0,104810.0,0.39736719]
[1737769429124,0.88612832,104820.0,104810.0,0.39736719]
[1737769429823,0.94260293,104820.0,104810.0,0.17060797]
[1737769430128,0.88518486,104820.0,104810.0,0.17060797]
[1737769430326,0.94260293,104820.0,104810.0,0.17060797]
[1737769430525,0.88518486,104820.0,104810.0,0.17060797]
[1737769435217,0.58937336,104820.0,104800.0,0.05741807]
[1737769435425,0.152664,104810.0,104800.0,0.05741807]
[1737769436032,0.513464,104810.0,104800.0,0.05741807]
[1737769437524,0.3608,104810.0,104800.0,0.26751514]
[1737769437726,0.3608,104810.0,104800.0,0.29831514]
[1737769437926,0.68460929,104820.0,104800.0,0.24089707]
[1737769438128,0.3608,104810.0,104800.0,0.24089707]
[1737769438338,0.56087978,104810.0,104800.0,0.24089707]
[1737769438832,0.20007978,104810.0,104800.0,0.24089707]
[1737769440333,0.56087978,104810.0,104800.0,0.24089707]
[1737769441226,0.44654848,104810.0,104800.0,0.41150504]
[1737769442035,0.44654848,104810.0,104800.0,0.44491549]
[1737769443634,0.08574848,104810.0,104800.0,0.44491549]
[1737769443937,0.44654848,104810.0,104800.0,0.44491549]
[1737769446141,0.44654848,104810.0,104800.0,0.27430752]
[1737769446142,0.56087978,104810.0,104800.0,0.27430752]